Cogmind - Beta 13 @@@ ROGUE MODE // 2024.03.31 @ 21:40:26 Player: Yovador Result: Destroyed by G-47 Trooper with Particle Gun Performance ------------- Evolutions (0) 0 Regions Visited (4) 800 Robots Destroyed (35) 175 Value Destroyed (672) 672 Prototype IDs (6) 120 Alien Tech Used (0) 0 Bonus (158) 158 TOTAL SCORE: 1925 Bonus ------- Follower Combat Kills 14 Aligned with FarCom 300 Friendly Fire -156 Cogmind --------- Core Integrity 0/250 Matter 25/300 Energy 100/100 System Corruption 2% Temperature Cool (82) Movement Treading (480) Ox4 Location -9/Mines Parts ------- > --- POWER (1) -------- (None) > --- PROPULSION (2) --- Light Treads > --- UTILITY (2) ------ Huge Storage Unit Signal Interpreter > --- WEAPON (2) ------- Light Assault Rifle Grenade Launcher > --- INVENTORY (25) --- Light Ion Engine Light Ion Engine Aluminum Leg Aluminum Leg Improved Heat Sink Improved Targeting Computer Core Shielding Small Laser Grenade Launcher Hammer Peak State ------------ > --- POWER ------------ Ion Engine > --- PROPULSION ------- Light Treads Light Treads > --- UTILITY ---------- Huge Storage Unit Signal Interpreter > --- WEAPON ----------- Heavy EM Pulse Gun Medium Laser > --- INVENTORY -------- Light Ion Engine Light Treads Aluminum Leg Aluminum Leg Improved Targeting Computer Core Shielding Medium Laser Small Laser Grenade Launcher [Rating: 9] Favorites ----------- Power Ion Engine Engine Ion Engine Propulsion Light Treads Treads Light Treads Utility Signal Interpreter Storage Huge Storage Unit Processor Signal Interpreter Weapon Medium Laser Energy Gun Medium Laser Ballistic Gun Light Assault Rifle Launcher Grenade Launcher Impact Weapon Hammer Build | -11 -10 -10 -10 -9 ------- Run | Yrd Mat Min Exi Min Slots Evolved . | . . . . . Power . | . . . . . Propulsion . | . . . . . Utility . | . . . . . Weapon . | . . . . . Parts Attached 28 | 6 10 7 . 5 Power 2 | 1 1 . . . Engine 2 | 1 1 . . . Core . | . . . . . Reactor . | . . . . . Propulsion 6 | 2 3 1 . . Treads 6 | 2 3 1 . . Leg . | . . . . . Wheel . | . . . . . Hover . | . . . . . Flight . | . . . . . Utility 3 | 1 2 . . . Device . | . . . . . Storage 2 | 1 1 . . . Processor 1 | . 1 . . . Hackware . | . . . . . Protection . | . . . . . Artifact . | . . . . . Weapon 17 | 2 4 6 . 5 Energy Gun 8 | 2 3 2 . 1 Energy Cannon . | . . . . . Ballistic Gun 2 | . . 1 . 1 Ballistic Cannon . | . . . . . Launcher 6 | . 1 2 . 3 Special Weapon . | . . . . . Impact Weapon 1 | . . 1 . . Slashing Weapon . | . . . . . Piercing Weapon . | . . . . . Special Melee Weapon . | . . . . . Unidentified Prototypes . | . . . . . Parts Lost 7 | . 2 3 . 2 Power 2 | . 1 . . 1 Propulsion 3 | . 1 1 . 1 Utility . | . . . . . Weapon 2 | . . 2 . . Highest Loss Streak 2 | . 2 2 . 2 To Critical Strikes . | . . . . . Average Slot Usage (%) 98 | . 97 98 100 99 Engine 13 | . 12 14 14 13 Treads 27 | . 26 27 28 27 Storage 14 | . 14 14 14 14 Processor 13 | . 13 14 14 14 Energy Gun 21 | . 27 21 14 8 Ballistic Gun 4 | . . 3 14 9 Launcher 1 | . . 2 . 10 Naked Turns . | . . . . . Heaviest Build 91 | 14 90 91 87 91 Greatest Support 40 | 40 40 40 40 40 Greatest Overweight (x) 4 | . 4 4 2 2 Average Overweight (x) 1 | . . 2 2 2 Largest Inventory Capacity 25 | 8 25 25 25 25 Average Capacity 20 | 7 17 25 25 25 Most Carried 14 | 7 14 13 10 10 Average Carried 9 | 4 9 11 10 10 Final Capacity 25 | 8 25 25 25 25 Final Carried 12 | 6 12 10 10 10 Class Distribution -------------------- 100% | Mutant Dominant Class ---------------- Mutant | -10/Materials Mutant | -10/Mines Mutant | -10/Exiles Mutant | -9/Mines Resources | -11 -10 -10 -10 -9 ----------- Run | Yrd Mat Min Exi Min Matter Collected 539 | 236 126 131 . 46 Remotely . | . . . . . Salvage Created 710 | . 367 210 . 133 Parts 63 | . 24 23 . 16 Haulers Intercepted . | . . . . . Recyclers Shooed . | . . . . . Parts Field Recycled . | . . . . . Retrieved Matter . | . . . . . Parts Self-Destructed . | . . . . . Prevented . | . . . . . Kills | -11 -10 -10 -10 -9 ------- Run | Yrd Mat Min Exi Min Combat Hostiles Destroyed 26 | . 11 7 . 8 Guns 11 | . 8 3 . . AOE 14 | . 2 4 . 8 Classes Destroyed 7 | . 4 3 . . Worker 2 | . . 1 . 1 Builder 2 | . 1 1 . . Tunneler 2 | . . 2 . . Watcher 3 | . 3 . . . Swarmer 12 | . 6 . . 6 Grunt 13 | . 5 6 . 2 Assembled 1 | . . 1 . . Thug 1 | . . . . 1 Best Kill Streak 8 | . 5 8 . 5 Combat Bots Only 4 | . 4 4 . 4 Max Kills in Single Turn 3 | . 2 3 . 3 Gunslinging 1 | . 1 . . . Exploded 3 | . 1 1 . 3 Melee . | . . . . . Uniques/NPCs Destroyed . | . . . . . Combat | -11 -10 -10 -10 -9 -------- Run | Yrd Mat Min Exi Min Hostile Shots Fired 122 | . 64 35 . 23 Missed 31 | . 13 11 . 7 Damage Taken 1331 | . 560 452 . 319 Core 260 | . 108 52 . 100 Absorbed by Shields . | . . . . . Regen/Repaired (Parts) 87 | . 87 . . . Core Remaining (%) 100 | 100 . . . . Volleys Fired 73 | . 40 26 . 7 Largest 2 | . 2 2 . 2 Hottest 100 | . 100 95 . 60 Shots Fired 131 | . 77 40 . 14 Gun 102 | . 73 25 . 4 Cannon . | . . . . . Launcher 29 | . 4 15 . 10 Special . | . . . . . Kinetic 4 | . . . . 4 Thermal 84 | . 72 12 . . Explosive 29 | . 4 15 . 10 Electromagnetic 14 | . 1 13 . . Robot Hit Streak 7 | . 7 4 . 3 Robot Miss Streak 5 | . 2 2 . 5 Penetration Max . | . . . . . Secondary Targets 1 | . 1 . . . Max Gunslinging Chain 1 | . 1 . . . Shots Hit Robots 68 | . 47 18 . 3 Core Hits 50 | . 18 17 . 15 Critical Kills . | . . . . . Critical Parts Destroyed . | . . . . . Critical Strikes 9 | . 7 2 . . Burn 9 | . 7 2 . . Melee Attacks . | . . . . . Impact . | . . . . . Slashing . | . . . . . Piercing . | . . . . . Sneak Attacks . | . . . . . Combat Hostiles . | . . . . . Follow-up Attacks . | . . . . . Damage Inflicted 1983 | . 697 746 . 540 Guns 722 | . 561 148 . 13 Cannons . | . . . . . Explosions 1261 | . 136 598 . 527 Melee . | . . . . . Ramming . | . . . . . Kinetic 13 | . . . . 13 Thermal 713 | . 561 152 . . Explosive 1195 | . 136 532 . 527 Electromagnetic 62 | . . 62 . . Impact . | . . . . . Slashing . | . . . . . Piercing . | . . . . . Highest Corruption 2 | . 2 2 2 2 Average Corruption 2 | . 2 2 2 2 Corruption Purged . | . . . . . Corruption Blocked . | . . . . . Effects 42 | . 20 10 10 2 Message Errors 9 | . 2 4 3 . Matter Fused 10 | . 6 2 2 . Heat Flow Errors 8 | . 1 1 4 2 Energy Discharges 6 | . 3 2 1 . Parts Rejected 1 | . 1 . . . Data Loss (minor) 2 | . 2 . . . Data Loss (major) 2 | . 2 . . . Misfires 1 | . 1 . . . Alerts 2 | . 1 1 . . Weapon Failures 1 | . 1 . . . Overload Shots . | . . . . . Overflow Damage 64 | . 28 36 . . Projectiles . | . . . . . Explosions 64 | . 28 36 . . Melee . | . . . . . Knockbacks . | . . . . . Impact . | . . . . . Kinetic . | . . . . . Secondary . | . . . . . Self-Inflicted Damage 283 | . 14 162 . 107 Shots 10 | . 1 5 . 4 Rammed 1 | . 1 . . . Targets Rammed 1 | . 1 . . . Kicked . | . . . . . Crushed . | . . . . . Highest Temperature 350 | . 350 156 231 280 Average Temperature 86 | . 94 43 100 126 Received Heat Transfer 447 | . 198 153 . 96 Siege Activations . | . . . . . Robots Corrupted . | . . . . . Combat Hostiles . | . . . . . Parts Fried . | . . . . . Impact Corruptions . | . . . . . Robots Melted 1 | . 1 . . . Combat Hostiles 1 | . 1 . . . Parts Melted 10 | . 9 1 . . Heat Transferred 2640 | . 2183 457 . . Parts Sabotaged . | . . . . . Parts Stolen . | . . . . . Parts Stripped . | . . . . . Power Chain Reactions 1 | . . 1 . . Alert | -11 -10 -10 -10 -9 ------- Run | Yrd Mat Min Exi Min Peak Influence 308 | . 308 117 . 254 Initial . | . . . . . Average 69 | . 84 50 . 55 Maximum Alert Level 1 | . 1 . . 1 Low Security (%) 93 | 100 89 100 . 95 Level 1 6 | . 10 . . 4 Level 2 . | . . . . . Level 3 . | . . . . . Level 4 . | . . . . . Level 5 . | . . . . . High Security . | . . . . . Max Security . | . . . . . Squads Dispatched 1 | . 1 . . . Investigation . | . . . . . Extermination . | . . . . . Reinforcement 1 | . 1 . . . Assault . | . . . . . Garrison . | . . . . . Intercept . | . . . . . Searches Triggered . | . . . . . Construction Impeded . | . . . . . Haulers Reinforced . | . . . . . Active Scanning Responses . | . . . . . Cargo Convoy Interrupts . | . . . . . Stealth | -11 -10 -10 -10 -9 --------- Run | Yrd Mat Min Exi Min Distress Signals . | . . . . . Communications Jammed . | . . . . . Distress Signals . | . . . . . Times Spotted 37 | . 17 8 . 12 Peak Tracking Total 7 | . 5 2 . 7 Tactical Retreats 3 | . 2 1 . . Traps | -11 -10 -10 -10 -9 ------- Run | Yrd Mat Min Exi Min Traps Triggered 2 | . 2 . . . Indirectly . | . . . . . Trap Hack Attempts . | . . . . . Triggered . | . . . . . Disarmed . | . . . . . Reprogrammed . | . . . . . Reused . | . . . . . Traps Extracted . | . . . . . Installed . | . . . . . Triggered . | . . . . . Machines | -11 -10 -10 -10 -9 ---------- Run | Yrd Mat Min Exi Min Machines Disabled 1 | . . 1 . . Max in Single Turn 1 | . . 1 . . Machines Repaired . | . . . . . Machines Dismantled . | . . . . . Machines Sabotaged . | . . . . . Overloaded Fab Kills . | . . . . . Hacking | -11 -10 -10 -10 -9 --------- Run | Yrd Mat Min Exi Min Machines Accessed 8 | . 8 . . . Terminals 6 | . 6 . . . Fabricators . | . . . . . Repair Stations 1 | . 1 . . . Recycling Units 1 | . 1 . . . Scanalyzers . | . . . . . Garrison Access . | . . . . . Total Hacks 25 | . 25 . . . Successful 15 | . 15 . . . Failed 10 | . 10 . . . Catastrophic 2 | . 2 . . . Database Lockouts . | . . . . . Manual . | . . . . . Terminals 18 | . 18 . . . Fabricators . | . . . . . Repair Stations 5 | . 5 . . . Recycling Units 2 | . 2 . . . Scanalyzers . | . . . . . Garrison Access . | . . . . . Terminal Hacks 10 | . 10 . . . Robot Analysis 1 | . 1 . . . Prototype ID Bank 3 | . 3 . . . Level Access Points 1 | . 1 . . . Alert Level 2 | . 2 . . . Locate Traps 1 | . 1 . . . Dispatch Records 1 | . 1 . . . Zone Layout 1 | . 1 . . . Fabricator Hacks . | . . . . . Repair Station Hacks 3 | . 3 . . . Scan Component 2 | . 2 . . . Repair 1 | . 1 . . . Recycling Unit Hacks 2 | . 2 . . . Report Inventory 1 | . 1 . . . Retrieve Components 1 | . 1 . . . Scanalyzer . | . . . . . Garrison Access Hacks . | . . . . . Unauthorized Hacks . | . . . . . Terminals . | . . . . . Fabricators . | . . . . . Repair Stations . | . . . . . Recycling Units . | . . . . . Scanalyzers . | . . . . . Garrison Access . | . . . . . Data Cores Recovered . | . . . . . Used . | . . . . . Hacking Detections 8 | . 8 . . . Full Trace Events 4 | . 4 . . . Feedback Events . | . . . . . Feedback Blocked . | . . . . . Robot Schematics Acquired . | . . . . . Robots Built . | . . . . . Authchips . | . . . . . Time . | . . . . . Total Robot Build Rating . | . . . . . Part Schematics Acquired . | . . . . . Parts Built . | . . . . . Authchips . | . . . . . Time . | . . . . . Total Part Build Rating . | . . . . . Parts Repaired 1 | . 1 . . . Time 26 | . 26 . . . Parts Recycled . | . . . . . Recycled Matter . | . . . . . Retrieved Matter . | . . . . . Retrieved Components 6 | . 6 . . . Parts Scanalyzed . | . . . . . Part Schematics Acquired . | . . . . . Parts Damaged . | . . . . . Bothacking | -11 -10 -10 -10 -9 ------------ Run | Yrd Mat Min Exi Min Used RIF Installer . | . . . . . Robots Hacked . | . . . . . Non-combat . | . . . . . Combat . | . . . . . Robot Hacks Applied . | . . . . . Relay Couplers Released . | . . . . . Fabnet Peak Effective % . | . . . . . Robots Rewired . | . . . . . Allies Hacked . | . . . . . Hacks Repelled . | . . . . . Allies | -11 -10 -10 -10 -9 -------- Run | Yrd Mat Min Exi Min Total Allies 4 | . . 3 . 1 Largest Group 3 | . . 3 . 1 Highest-Rated Group 40 | . . 40 . 31 Highest-Rated Ally 31 | . . 16 . 31 Total Orders . | . . . . . Ally Attacks 3 | . . . . 3 Total Damage 41 | . . . . 41 Kills 2 | . . . . 2 Allies Corrupted . | . . . . . Allies Melted . | . . . . . Intel | -11 -10 -10 -10 -9 ------- Run | Yrd Mat Min Exi Min Robot Analysis Total 1 | . 1 . . . Derelict Logs Recovered 2 | . . 1 . 1 Drone Launches . | . . . . . Drone Recoveries . | . . . . . Exploration | -11 -10 -10 -10 -9 ------------- Run | Yrd Mat Min Exi Min Turns Passed 4160 | 118 2005 854 861 322 Spaces Moved 1444 | 68 803 237 270 66 Core 14 | 14 . . . . Treads 1430 | 54 803 237 270 66 Legs . | . . . . . Wheels . | . . . . . Hover . | . . . . . Flight . | . . . . . Fastest Speed 50 | 50 160 320 320 320 Average Speed 259 | 137 226 320 320 320 Slowest Speed 480 | 160 480 480 320 320 Overloaded Moves . | . . . . . Propulsion Burnouts . | . . . . . Robots Hopped . | . . . . . Cave-ins Triggered . | . . . . . Exploration Rate (%) 45 | 3 92 45 64 25 Regions Visited 4 Branch Regions 3 Pre-discovered Areas . | . . . . . Known Exits Taken 3 | . 1 1 1 . Unknown Exits Taken 1 | 1 . . . . Scrap Searched . | . . . . . Spaces Dug . | . . . . . Terrain Destroyed 126 | . 25 44 . 57 Melee . | . . . . . Projectile . | . . . . . AOE 126 | . 25 44 . 57 Terrain Rammed . | . . . . . Walls Destroyed . | . . . . . Machines Disabled . | . . . . . Actions | -11 -10 -10 -10 -9 --------- Run | Yrd Mat Min Exi Min Total 1725 | 93 908 293 269 162 Wait 149 | 8 36 21 . 84 Move 1440 | 67 802 236 269 66 Hop . | . . . . . Pick Up 28 | 12 15 1 . . Fast Attach . | . . . . . Attach 16 | 6 5 5 . . Detach 2 | . . 2 . . Swap 12 | . 5 2 . 5 Drop 4 | . 4 . . . Fire 73 | . 40 26 . 7 Melee . | . . . . . Ram . | . . . . . Kick . | . . . . . Crush 1 | . 1 . . . Escape Stasis . | . . . . . Rewire . | . . . . . Trap . | . . . . . Miscellaneous . | . . . . . Route ------- -11/Scrapyard -10/Materials (discovered 5 exits: *Mat x3 / *Min x2) -10/Mines (discovered 2 exits: *Mat / *Exi) -10/Exiles -9/Mines (discovered 1 exit: [*Mat]) History --------- Turn | Location | Event 6 | -11/Scrapyard | Discovered new exit (range 16) 119 | -11/Scrapyard | Entered Materials 318 | -10/Materials | Build established: Mutant 423 | -10/Materials | Discovered new exit (range 3) 808 | -10/Materials | Discovered new exit (range 13) 827 | -10/Materials | Discovered new exit (range 11) 873 | -10/Materials | Identified exit to Mines 1109 | -10/Materials | Discovered new exit (range 11) 1679 | -10/Materials | Identified exit to Materials 1816 | -10/Materials | Repaired Lgt. Treads 2124 | -10/Materials | Entered Mines 2172 | -10/Mines | Discovered exit to Materials (range 3) 2555 | -10/Mines | Assisted by bots powering up and referring to "LRC-V3" 2639 | -10/Mines | Excavation squad dispatched 2639 | -10/Mines | A large section of the Mines collapsed 2673 | -10/Mines | Core integrity fell below 50% 2895 | -10/Mines | Learned Materials garrison access intel 2962 | -10/Mines | Deemed a non-threat by the Exiles lab entrance 2965 | -10/Mines | Discovered new exit (range 5) 2975 | -10/Mines | Identified exit to Exiles 2978 | -10/Mines | Entered Exiles 3055 | -10/Exiles | Met 8R-AWN 3110 | -10/Exiles | Met EX-HEX 3202 | -10/Exiles | Met EX-BIN 3241 | -10/Exiles | Aligned with FarCom system 3244 | -10/Exiles | Given EX-Vault access code 3481 | -10/Exiles | Met EX-DEC 3634 | -10/Exiles | Discovered new exit (range 14) 3670 | -10/Exiles | Identified exit to Mines 3839 | -10/Exiles | Entered Mines 4052 | -9/Mines | Received a Mining Laser from a helpful Derelict 4089 | -9/Mines | Learned Materials trap positions 4137 | -9/Mines | Discovered new exit (range 8) 4148 | -9/Mines | Core integrity fell below 20% 4161 | -9/Mines | Destroyed by G-47 Trooper with Particle Gun Last Messages --------------- C-30 ARC bursts open, deploying its payload. S-10 Pest unfolds itself. S-10 Pest destroyed. C-30 ARC: "SECOND INTRUDER APPROACHING. ELIMINATE." C-30 ARC bursts open, deploying its payload. S-10 Pest destroyed. System corrupted: Heat flow error (+147). PV-5K6(g) destroyed. [Achievement: Backstab] S-10 Pest destroyed. Acquired 46 matter. A derelict emerges from the shadows: "Quick, help me dispose of these Unaware!" G-34 Mercenary destroyed. Lgt. Treads destroyed. Ion Engine destroyed. L-31 Rogue destroyed. G-34 Mercenary destroyed. Map ----- +----------------------------------------------------+ | | | | | | | | | | | | | | | | | | | | | | | | | | | | | | | | | ??????????????????????????????????????????????? | | ????????????????????????????????????????####??? | | ????????????????????????????????????????? ### | | ????????????????????????????????????????? # | | ???????????????#?########???####????????? | | ???????????????# # ##### ##????????? | | ???????????????# ##???????? | | ???????????????# ########## # | | ???????????????# %= | ## | | ???????????????# [ % @ ## ##### # | | ???????????????# * ! #### ##??# # | | ??????????????# = #?## ##??## % ## | | ?????????????#%